Cogmind - Beta 15 @@@ ROGUE MODE // 2025.05.30 @ 23:41:20 Player: Beosis Result: Destroyed by 00-UMI(R) with Subdweller Machine Gun Performance ------------- Evolutions (0) 0 Regions Visited (2) 400 Robots Destroyed (3) 15 Value Destroyed (120) 120 Prototype IDs (0) 0 Alien Tech Used (0) 0 Bonus (0) 0 TOTAL SCORE: 535 Bonus ------- None Cogmind --------- Core Integrity 0/250 Matter 284/300 Energy 100/100 System Corruption 0% Temperature Cool (6) Movement Core (250) Ox4 Location -10/Subcaves Parts ------- > --- POWER (1) -------- (None) > --- PROPULSION (2) --- (None) > --- UTILITY (2) ------ Subdweller Optics > --- WEAPON (2) ------- Barrage Gun Subdweller Shrapnel Launcher > --- INVENTORY (5) ---- Subdweller Power Source Subdweller Monowheel Small Storage Unit Subdweller Beam Cannon Multitool Peak State ------------ > --- POWER ------------ Ion Engine > --- PROPULSION ------- Wheel Compact Wheel > --- UTILITY ---------- Subdweller Optics Light Armor Plating > --- WEAPON ----------- Subdweller Beam Cannon Barrage Gun > --- INVENTORY -------- Small Storage Unit EM Pulse Gun [Rating: 11] Favorites ----------- Power Ion Engine Engine Ion Engine Propulsion Wheel Treads Light Treads Wheel Wheel Utility Subdweller Optics Device Subdweller Optics Storage Small Storage Unit Protection Light Armor Plating Weapon Barrage Gun Energy Gun EM Pulse Gun Energy Cannon Subdweller Beam Cannon Ballistic Gun Barrage Gun Launcher Subdweller Shrapnel Launcher Build | -11 -10 -10 ------- Run | Yrd Mat Sub Slots Evolved . | . . . Power . | . . . Propulsion . | . . . Utility . | . . . Weapon . | . . . Parts Attached 15 | 8 1 6 Power 1 | 1 . . Engine 1 | 1 . . Core . | . . . Reactor . | . . . Propulsion 5 | 4 . 1 Treads 2 | 2 . . Leg . | . . . Wheel 3 | 2 . 1 Hover . | . . . Flight . | . . . Utility 4 | 1 1 2 Device 2 | . . 2 Storage 1 | 1 . . Processor . | . . . Hackware . | . . . Protection 1 | . 1 . Artifact . | . . . Weapon 5 | 2 . 3 Energy Gun 1 | 1 . . Energy Cannon 1 | . . 1 Ballistic Gun 2 | 1 . 1 Ballistic Cannon . | . . . Launcher 1 | . . 1 Special Weapon . | . . . Impact Weapon . | . . . Slashing Weapon . | . . . Piercing Weapon . | . . . Special Melee Weapon . | . . . Unidentified Prototypes . | . . . Parts Lost 4 | . . 4 Power 1 | . . 1 Propulsion 2 | . . 2 Utility 1 | . . 1 Weapon . | . . . Highest Loss Streak 3 | . . 3 To Critical Strikes . | . . . Average Backups 1 | . . 2 Power . | . . . Propulsion . | . . . Utility . | . . . Weapon . | . . . Tool/Special . | . . . Unused Backups 2 | . . 2 Power 1 | . . 1 Propulsion . | . . . Utility . | . . . Weapon . | . . . Tool/Special 1 | . . 1 Average Slot Usage (%) 91 | . 98 89 Engine 13 | . 14 13 Wheel 27 | . 28 27 Device 10 | . . 13 Storage 3 | . 14 . Protection 9 | . 12 8 Energy Gun 5 | . 14 4 Energy Cannon 4 | . . 6 Ballistic Gun 14 | . 14 14 Peak Build Rating 11 | 6 7 11 Average Rating 8 | 3 6 9 On Entrance 4 | . 6 7 Naked Turns . | . . . Heaviest Build 21 | 13 16 21 Greatest Support 26 | 26 26 26 Greatest Overweight (x) 2 | 2 . . Average Overweight (x) . | . . . Largest Inventory Capacity 8 | 8 8 8 Average Capacity 5 | 5 8 5 Most Carried 5 | 2 1 5 Average Carried 1 | . . 2 Final Capacity 8 | 8 8 5 Final Carried 5 | . . 5 Class Distribution -------------------- 100% | Mutant Dominant Class ---------------- Mutant | -10/Materials Mutant | -10/Subcaves Resources | -11 -10 -10 ----------- Run | Yrd Mat Sub Matter Collected 467 | 202 . 265 Remotely . | . . . Salvage Created 167 | . . 167 Parts 10 | . . 10 Haulers Intercepted . | . . . Recyclers Shooed . | . . . Parts Field Recycled . | . . . Retrieved Matter . | . . . Parts Self-Destructed 12 | . . 12 Prevented . | . . . Kills | -11 -10 -10 ------- Run | Yrd Mat Sub Combat Hostiles Destroyed 3 | . . 3 Guns 2 | . . 2 Cannons 1 | . . 1 Classes Destroyed 2 | . . 2 Artisan 1 | . . 1 Subdweller 3 | . . 3 Best Kill Streak 1 | . . 1 Combat Bots Only 1 | . . 1 Max Kills in Single Turn 1 | . . 1 Gunslinging . | . . . Exploded . | . . . Melee . | . . . Uniques/NPCs Destroyed . | . . . Combat | -11 -10 -10 -------- Run | Yrd Mat Sub Hostile Shots Fired 27 | . . 27 Missed 2 | . . 2 Hits 25 | . . 25 Projectile 25 | . . 25 AOE 1 | . . 1 Critical Strikes 1 | . . 1 Damage Taken 642 | . . 642 Core 259 | . . 259 Absorbed by Shields . | . . . Core Remaining (%) 100 | 100 . . Volleys Fired 32 | . . 32 Largest 2 | . . 2 Hottest 108 | . . 108 Shots Fired 54 | . . 54 Gun 35 | . . 35 Cannon 18 | . . 18 Launcher 1 | . . 1 Special . | . . . Kinetic 35 | . . 35 Thermal 18 | . . 18 Explosive . | . . . Electromagnetic 1 | . . 1 Robot Hit Streak 9 | . . 9 Robot Miss Streak 1 | . . 1 Penetration Max . | . . . Secondary Targets . | . . . Shots Hit Robots 20 | . . 20 Core Hits 7 | . . 7 Critical Kills . | . . . Critical Parts Destroyed . | . . . Critical Strikes . | . . . Melee Attacks . | . . . Impact . | . . . Slashing . | . . . Piercing . | . . . Sneak Attacks . | . . . Combat Hostiles . | . . . Follow-up Attacks . | . . . Damage Inflicted 428 | . . 428 Guns 241 | . . 241 Cannons 111 | . . 111 Explosions 65 | . . 65 Melee . | . . . Ramming 11 | . . 11 Kinetic 306 | . . 306 Thermal 111 | . . 111 Explosive . | . . . Electromagnetic . | . . . Impact . | . . . Slashing . | . . . Piercing . | . . . Highest Corruption . | . . . Average Corruption . | . . . Corruption Purged . | . . . Corruption Blocked . | . . . Overload Shots . | . . . Overflow Damage 23 | . . 23 Projectiles . | . . . Explosions 23 | . . 23 Melee . | . . . Knockbacks . | . . . Impact . | . . . Kinetic . | . . . Secondary . | . . . Self-Inflicted Damage 60 | . . 60 Shots 1 | . . 1 Rammed 6 | . . 6 Targets Rammed 6 | . . 6 Kicked . | . . . Crushed . | . . . Highest Temperature 41 | . . 41 Average Temperature 23 | . . 23 Received Heat Transfer 108 | . . 108 Siege Activations . | . . . Martial Activations . | . . . Shielding Activations . | . . . Robots Disrupted . | . . . Combat Hostiles . | . . . Robots Corrupted . | . . . Combat Hostiles . | . . . Parts Fried . | . . . Impact Corruptions . | . . . Robots Melted . | . . . Combat Hostiles . | . . . Parts Melted 1 | . . 1 Heat Transferred 148 | . . 148 Parts Sabotaged . | . . . Parts Stolen . | . . . Parts Stripped . | . . . Power Chain Reactions . | . . . Alert | -11 -10 -10 ------- Run | Yrd Mat Sub Maximum Alert Level . | . . . Low Security (%) 100 | 100 100 . Level 1 . | . . . Level 2 . | . . . Level 3 . | . . . Level 4 . | . . . Level 5 . | . . . High Security . | . . . Max Security . | . . . Peak Influence . | . . . Initial . | . . . Average . | . . . Influence Increases . | . . . Influence Decreases . | . . . Squads Dispatched . | . . . Investigation . | . . . Extermination . | . . . Reinforcement . | . . . Assault . | . . . Garrison . | . . . Intercept . | . . . Searches Triggered . | . . . Construction Impeded . | . . . Haulers Reinforced . | . . . Active Scanning Responses . | . . . Cargo Convoy Interrupts . | . . . Stealth | -11 -10 -10 --------- Run | Yrd Mat Sub Distress Signals . | . . . Communications Jammed . | . . . Distress Signals . | . . . Times Spotted 6 | . . 6 Peak Tracking Total 2 | . . 2 Tactical Retreats . | . . . Traps | -11 -10 -10 ------- Run | Yrd Mat Sub Traps Triggered . | . . . Indirectly . | . . . Trap Hack Attempts . | . . . Triggered . | . . . Disarmed . | . . . Reprogrammed . | . . . Reused . | . . . Traps Extracted . | . . . Installed . | . . . Triggered . | . . . Machines | -11 -10 -10 ---------- Run | Yrd Mat Sub Machines Disabled . | . . . Max in Single Turn . | . . . Machines Repaired . | . . . Machines Dismantled . | . . . Machines Sabotaged . | . . . Overloaded Fab Kills . | . . . Hacking | -11 -10 -10 --------- Run | Yrd Mat Sub Machines Accessed . | . . . Terminals . | . . . Fabricators . | . . . Repair Stations . | . . . Recycling Units . | . . . Scanalyzers . | . . . Garrison Access . | . . . Total Hacks . | . . . Successful . | . . . Failed . | . . . Catastrophic . | . . . Database Lockouts . | . . . Manual . | . . . Terminals . | . . . Fabricators . | . . . Repair Stations . | . . . Recycling Units . | . . . Scanalyzers . | . . . Garrison Access . | . . . Terminal Hacks . | . . . Fabricator Hacks . | . . . Repair Station Hacks . | . . . Recycling Unit Hacks . | . . . Scanalyzer . | . . . Garrison Access Hacks . | . . . Unauthorized Hacks . | . . . Terminals . | . . . Fabricators . | . . . Repair Stations . | . . . Recycling Units . | . . . Scanalyzers . | . . . Garrison Access . | . . . Data Cores Recovered . | . . . Used . | . . . Hacking Detections . | . . . Full Trace Events . | . . . Feedback Events . | . . . Feedback Blocked . | . . . Robot Schematics Acquired . | . . . Robots Built . | . . . Authchips . | . . . Time . | . . . Total Robot Build Rating . | . . . Part Schematics Acquired . | . . . Parts Built . | . . . Authchips . | . . . Time . | . . . Total Part Build Rating . | . . . Parts Repaired . | . . . Time . | . . . Parts Recycled . | . . . Recycled Matter . | . . . Retrieved Matter . | . . . Retrieved Components . | . . . Parts Scanalyzed . | . . . Part Schematics Acquired . | . . . Parts Damaged . | . . . Bothacking | -11 -10 -10 ------------ Run | Yrd Mat Sub Used RIF Installer . | . . . Robots Hacked . | . . . Non-combat . | . . . Combat . | . . . Robot Hacks Applied . | . . . Relay Couplers Released . | . . . Fabnet Peak Effective % . | . . . Robots Rewired . | . . . Allies Hacked . | . . . Hacks Repelled . | . . . Allies | -11 -10 -10 -------- Run | Yrd Mat Sub Total Allies . | . . . Largest Group . | . . . Highest-Rated Group . | . . . Highest-Rated Ally . | . . . Total Orders . | . . . Ally Attacks . | . . . Total Damage . | . . . Kills . | . . . Allies Corrupted . | . . . Allies Melted . | . . . Intel | -11 -10 -10 ------- Run | Yrd Mat Sub Active Infowar (turns) 851 | . . 851 Optics 851 | . . 851 Robot Analysis Total . | . . . Derelict Logs Recovered . | . . . Drone Launches . | . . . Drone Recoveries . | . . . Exploration | -11 -10 -10 ------------- Run | Yrd Mat Sub Turns Passed 1391 | 91 241 1059 Spaces Moved 819 | 72 89 658 Core 43 | 43 . . Treads . | . . . Legs . | . . . Wheels 776 | 29 89 658 Hover . | . . . Flight . | . . . Fastest Speed 50 | 50 90 90 Average Speed 91 | 103 90 90 Slowest Speed 150 | 150 90 90 Overloaded Moves . | . . . Propulsion Burnouts . | . . . Robots Hopped . | . . . Potential Cave-ins . | . . . Cave-ins Triggered . | . . . Exploration Rate (%) 16 | 4 18 26 Regions Visited 2 Branch Regions 1 Pre-discovered Areas . | . . . Known Exits Taken . | . . . Unknown Exits Taken 2 | 1 1 . Scrap Searched 4 | . . 4 Spaces Dug . | . . . Terrain Destroyed 22 | . . 22 Melee . | . . . Projectile 1 | . . 1 AOE 21 | . . 21 Terrain Rammed . | . . . Walls Destroyed . | . . . Machines Disabled . | . . . Actions | -11 -10 -10 --------- Run | Yrd Mat Sub Total 1407 | 89 249 1069 Wait 510 | . 159 351 Move 817 | 71 88 658 Hop . | . . . Pick Up 17 | 8 1 8 Fast Attach 1 | . . 1 Attach 10 | 8 1 1 Detach 1 | . . 1 Swap 7 | . . 7 Drop 6 | 2 . 4 Fire 32 | . . 32 Melee . | . . . Ram 6 | . . 6 Kick . | . . . Crush . | . . . Escape Stasis . | . . . Rewire . | . . . Trap . | . . . Miscellaneous . | . . . Route ------- -11/Scrapyard -10/Materials -10/Subcaves History --------- Turn | Location | Event 20 | -11/Scrapyard | Discovered new exit (range 16) 92 | -11/Scrapyard | Entered Materials 263 | -10/Materials | Discovered new exit (range 9) 304 | -10/Materials | Build established: Mutant 333 | -10/Materials | Entered Subcaves 1361 | -10/Subcaves | Ambushed by angry Subdweller bent on revenge 1371 | -10/Subcaves | Ambushed by Subdweller buried in earth 1380 | -10/Subcaves | Core integrity fell below 50% 1384 | -10/Subcaves | Ambushed by Subdweller buried in earth 1391 | -10/Subcaves | Core integrity fell below 20% 1392 | -10/Subcaves | Destroyed by 00-UMI(R) with Subdweller Machine Gun Last Messages --------------- Acquired Multitool. Acquired 29 matter. 0X-B63(R) angrily emerges from the Twisted Machinery. 0X-B63(R): "SUBMAD!" Subatomizers dissect the Wheel. Ion Engine destroyed. 0X-B63(R) destroyed. 3U-MOU(R): "ARGHSUB!" Slammed into 3U-MOU(R). Acquired 26 matter. Slammed into 3U-MOU(R). Destabilizing: Core damaged (-7). Acquired Sub. Shrapnel Launcher. Subatomizers dissect the Wheel. Com. Wheel destroyed. Destroyed Com. Wheel. Wheel destroyed. 00-UMI(R): "ARGHSUB!" Slammed into 3U-MOU(R). Map ----- +----------------------------------------------------+ | ????????????????# # #???# #???????????????? | | ????????????????#####??## #???????????????? | | ???????????????????????# ##???????????????? | | ????????????????????#### ##???????????????? | | ????????????????????# # # #???????????????? | | ??????????????????#### ####???????????????? | | ?????????????????## # ##??????????????????? | | ?????????????????# ##???????????????????? | | ?????????????????## #???????????????????? | | ?????????????????# ##???????????????????? | | ?????????????????## #???????????????????? | | ??????????????????#& #???????????????????? | | ?????????????????## #??##?####??????????? | | ???????????????### ;###"# ### ??? | | ???????????????# """"""" #????? | | ???????????????# """ " #????? | | ???????????????# ""# # #???????? | | ??????????????## "#######???###???????? | | ??????????????#" "* ##???????????????????? | | ??????????????#" =##????????????????????? | | ??????????????#" ####??????????????????? | | ??????????????#;; ;; #??????????????????? | | ??????????????# R #??????????????????? | | ??????????????# ! #??????????????????? | | ??????????????# ; #??????????????????? | | ??????????????# @R #??????????????????? | | ??????????????# #??????????????????? | | ??????????????### ; #??????????????????? | | ??????????####### ####??????????????????? | | ??????????#]%## #?????????????????????? | | ??????????# "##< ##????????????????????? | | ??????????## #?###????????????????? | | ??????????#&]# #< #### ##???????????????? | | ??????????# %### ### ##??????????????? | | ??????????####?### # ##???????#???##? | | ?????????????????# ##?????? ### ## | | ????????????????## ## ######?? # | | ????????????????# ### #?? | | ????????????????## ##??# | | ?????????????????### # ##### | | ???????????????????#### " # | | ??????????????????????# ### # | | ??????????????????????#& ##?## ### | | ??????????????????????# #???####?# | | ??????????????????????# " # #????????# ## | | ??????????????????????##### #????????# ? | | ??????????????????????????? #???????## # | | ??????????????????????????? ???????? ## | | ?????????????????????????? ## #??????? #? | | ??????????????????????????#??# ##???????# ? | +----------------------------------------------------+ Best States ------------- Heat Dissipation 25 Energy Generation 10 Energy Capacity 250 Matter Stores 300 Matter Capacity 300 Sight Range 21 Terrain Scan Density 10 Armor Coverage 150 Evasion (%) 50 Item Schematics ----------------- None Robot Schematics ------------------ None Fabricated ------------ Nothing Repaired ---------- Nothing Alien Tech Used ----------------- None Achievements -------------- None Challenges ------------ None Game ------ Seed SiegeSmartbombScanner Manual? 0 Play Time 00:12:41 Cumulative 12.7 hours Start 2025.05.30 @ 23:28:56 End 2025.05.30 @ 23:41:20 Sessions 1 Manual Loads 0 Difficulty Rogue Special Mode None Game No. 11 Rogue 5 Adventurer 0 Explorer 6 Win Type - Total 0 Types 0/0/0/0/0/0/0/0/0/0 Lore% 10 Gallery% 15 Achievement% 18 Wizard Run 0 Options --------- Layout 1 ASCII 0 Keyboard 0 Movement Arrows Keybinds 0 Fullscreen 1 Font 24/Smallcaps Map View 50x35 Zoom Use 0% Tactical HUD 0 Map Filters NONE Filters NONE Steam 1 RUN: e4c93d7d-da8a-4aeb-8bfc-aa75a09e7b61